[Event "*** Titled Tuesday Blitz"]
[Site "Chess.com"]
[Date "2020.05.26"]
[Round "6"]
[White "ftorodent"]
[Black "TudorAnton"]
[Result "1-0"]
[WhiteElo "2666"]
[BlackElo "2462"]
[TimeControl "180+1"]
[EndTime "11:07:23 PDT"]
[Termination "ftorodent won by resignation"]

1. d4 {[%clk 0:03:00.9]} 1... Nf6 {[%clk 0:02:59.5]} 2. c4 {[%clk 0:03:00.6]}
2... e6 {[%clk 0:02:59.5]} 3. Nf3 {[%clk 0:03:00.4]} 3... Bb4+ {[%clk
0:02:58.5]} 4. Bd2 {[%clk 0:02:59.7]} 4... c5 {[%clk 0:02:57.8]} 5. Bxb4 {[%clk
0:02:57.9]} 5... cxb4 {[%clk 0:02:58.7]} 6. e3 {[%clk 0:02:57]} 6... O-O {[%clk
0:02:51.8]} 7. Be2 {[%clk 0:02:52.6]} 7... d6 {[%clk 0:02:51.6]} 8. O-O {[%clk
0:02:52.3]} 8... Nc6 {[%clk 0:02:51.7]} 9. a3 {[%clk 0:02:51.7]} 9... a5 {[%clk
0:02:49.9]} 10. axb4 {[%clk 0:02:50.2]} 10... Nxb4 {[%clk 0:02:49.4]} 11. Nc3
{[%clk 0:02:50.3]} 11... b6 {[%clk 0:02:46.3]} 12. Na2 {[%clk 0:02:29.2]} 12...
Nxa2 {[%clk 0:02:45.3]} 13. Rxa2 {[%clk 0:02:29.4]} 13... Bb7 {[%clk 0:02:45.6]}
14. Qb1 {[%clk 0:02:23.8]} 14... Be4 {[%clk 0:02:43.7]} 15. Qe1 {[%clk
0:02:21.3]} 15... Qc7 {[%clk 0:02:42.5]} 16. b4 {[%clk 0:02:18.3]} 16... axb4
{[%clk 0:02:32.8]} 17. Rxa8 {[%clk 0:02:17.4]} 17... Rxa8 {[%clk 0:02:33.7]} 18.
Qxb4 {[%clk 0:02:17.2]} 18... h6 {[%clk 0:02:20]} 19. Nd2 {[%clk 0:02:10.8]}
19... Bc6 {[%clk 0:02:18]} 20. Rb1 {[%clk 0:02:09.8]} 20... Rb8 {[%clk
0:02:17.8]} 21. h3 {[%clk 0:02:06.6]} 21... Nd7 {[%clk 0:02:15.8]} 22. Ra1
{[%clk 0:02:03]} 22... g6 {[%clk 0:02:08.9]} 23. Ra3 {[%clk 0:01:54]} 23... e5
{[%clk 0:02:04.3]} 24. Bf3 {[%clk 0:01:48.9]} 24... Bxf3 {[%clk 0:02:03.6]} 25.
Nxf3 {[%clk 0:01:48.9]} 25... Rc8 {[%clk 0:02:01]} 26. Nd2 {[%clk 0:01:45.2]}
26... d5 {[%clk 0:01:46.4]} 27. cxd5 {[%clk 0:01:37]} 27... exd4 {[%clk
0:01:46.2]} 28. exd4 {[%clk 0:01:37.1]} 28... Nf6 {[%clk 0:01:45]} 29. d6 {[%clk
0:01:32.5]} 29... Qc1+ {[%clk 0:01:44.7]} 30. Kh2 {[%clk 0:01:32.1]} 30... Nd5
{[%clk 0:01:45.2]} 31. Qb3 {[%clk 0:01:23.9]} 31... Nf4 {[%clk 0:01:21]} 32. Qe3
{[%clk 0:01:07.4]} 32... Nd5 {[%clk 0:01:06.4]} 33. Qb3 {[%clk 0:01:01.9]} 33...
Nf4 {[%clk 0:01:04.8]} 34. d7 {[%clk 0:00:56.4]} 34... Rd8 {[%clk 0:01:01]} 35.
Qe3 {[%clk 0:00:55.6]} 35... Ne2 {[%clk 0:00:52.4]} 36. Nf3 {[%clk 0:00:38.3]}
36... Rxd7 {[%clk 0:00:52.3]} 37. Ra8+ {[%clk 0:00:35.9]} 37... Kh7 {[%clk
0:00:49.1]} 38. Qxe2 {[%clk 0:00:35.9]} 38... Qc7+ {[%clk 0:00:44.5]} 39. g3
{[%clk 0:00:35.3]} 39... Re7 {[%clk 0:00:44.7]} 40. Ne5 {[%clk 0:00:30]} 40...
f6 {[%clk 0:00:44.6]} 41. Qa2 {[%clk 0:00:29.8]} 41... Rg7 {[%clk 0:00:42.2]}
42. Ng4 {[%clk 0:00:28.8]} 42... Qc6 {[%clk 0:00:38.6]} 43. Qd2 {[%clk
0:00:27.5]} 1-0

[Event "*** Titled Tuesday Blitz"]
[Site "Chess.com"]
[Date "2020.05.26"]
[Round "6"]
[White "WhiteCapital80"]
[Black "vaishali2001"]
[Result "0-1"]
[WhiteElo "2405"]
[BlackElo "2608"]
[TimeControl "180+1"]
[EndTime "11:07:23 PDT"]
[Termination "vaishali2001 won by resignation"]

1. e4 {[%clk 0:03:00.9]} 1... c5 {[%clk 0:02:55.9]} 2. Nf3 {[%clk 0:03:00.9]}
2... e6 {[%clk 0:02:55.4]} 3. d4 {[%clk 0:03:00.8]} 3... cxd4 {[%clk 0:02:56.3]}
4. Nxd4 {[%clk 0:03:01]} 4... a6 {[%clk 0:02:56.7]} 5. Nc3 {[%clk 0:03:00.8]}
5... Qc7 {[%clk 0:02:55.2]} 6. Be2 {[%clk 0:03:00.7]} 6... Nf6 {[%clk
0:02:53.6]} 7. O-O {[%clk 0:02:58.2]} 7... Bc5 {[%clk 0:02:51.8]} 8. Nb3 {[%clk
0:02:51.1]} 8... Ba7 {[%clk 0:02:47.5]} 9. a4 {[%clk 0:02:48]} 9... d6 {[%clk
0:02:36.9]} 10. Kh1 {[%clk 0:02:42.6]} 10... h5 {[%clk 0:02:23.5]} 11. f4 {[%clk
0:02:40.2]} 11... Nc6 {[%clk 0:02:03.8]} 12. Bf3 {[%clk 0:02:37]} 12... Bd7
{[%clk 0:02:02.4]} 13. Qe2 {[%clk 0:02:35.7]} 13... Nd4 {[%clk 0:01:51.5]} 14.
Nxd4 {[%clk 0:02:32]} 14... Bxd4 {[%clk 0:01:52.4]} 15. Be3 {[%clk 0:02:26.7]}
15... Bxc3 {[%clk 0:01:37.1]} 16. bxc3 {[%clk 0:02:26.5]} 16... e5 {[%clk
0:01:37.4]} 17. f5 {[%clk 0:02:13.5]} 17... Qxc3 {[%clk 0:01:08.7]} 18. Rad1
{[%clk 0:02:09.1]} 18... O-O-O {[%clk 0:01:01.3]} 19. Bb6 {[%clk 0:01:54.9]}
19... Bxa4 {[%clk 0:00:57.4]} 20. Bxd8 {[%clk 0:01:42.2]} 20... Rxd8 {[%clk
0:00:58.1]} 21. Rd2 {[%clk 0:01:38.1]} 21... Bb5 {[%clk 0:00:56.7]} 22. Rd3
{[%clk 0:01:36.3]} 22... Bxd3 {[%clk 0:00:55.6]} 23. cxd3 {[%clk 0:01:36.3]}
23... h4 {[%clk 0:00:52.6]} 24. h3 {[%clk 0:01:32.5]} 24... Kb8 {[%clk
0:00:51.1]} 25. Rd1 {[%clk 0:01:30.6]} 25... Qd4 {[%clk 0:00:48.9]} 26. Qe1
{[%clk 0:01:30]} 26... Rc8 {[%clk 0:00:48.5]} 27. Qxh4 {[%clk 0:01:29.4]} 27...
Nd5 {[%clk 0:00:39.2]} 28. Qg5 {[%clk 0:01:18.5]} 28... Nf4 {[%clk 0:00:23.6]}
29. Qxg7 {[%clk 0:01:14.4]} 29... Nxd3 {[%clk 0:00:23.9]} 30. Kh2 {[%clk
0:01:10.1]} 30... Qe3 {[%clk 0:00:23.9]} 31. Qxf7 {[%clk 0:00:59.9]} 31... Rc2
{[%clk 0:00:24.1]} 32. Rf1 {[%clk 0:00:42]} 32... Qf4+ {[%clk 0:00:20.1]} 33.
Kh1 {[%clk 0:00:40.4]} 33... Nf2+ {[%clk 0:00:19.4]} 34. Rxf2 {[%clk 0:00:30.9]}
34... Rc1+ {[%clk 0:00:18.9]} 0-1

[Event "*** Titled Tuesday Blitz"]
[Site "Chess.com"]
[Date "2020.05.26"]
[Round "6"]
[White "MightyGMpretender"]
[Black "Julianos82"]
[Result "1-0"]
[WhiteElo "2542"]
[BlackElo "2308"]
[TimeControl "180+1"]
[EndTime "11:07:23 PDT"]
[Termination "MightyGMpretender won by resignation"]

1. Nf3 {[%clk 0:03:00.9]} 1... d5 {[%clk 0:02:59.3]} 2. g3 {[%clk 0:02:59.1]}
2... c6 {[%clk 0:02:58.5]} 3. Bg2 {[%clk 0:02:59.6]} 3... Bg4 {[%clk 0:02:58.2]}
4. O-O {[%clk 0:03:00]} 4... Nd7 {[%clk 0:02:57.4]} 5. b3 {[%clk 0:03:00.4]}
5... e6 {[%clk 0:02:57.7]} 6. Bb2 {[%clk 0:03:00.7]} 6... f5 {[%clk 0:02:47.8]}
7. d3 {[%clk 0:03:00.2]} 7... Ngf6 {[%clk 0:02:47.1]} 8. Nbd2 {[%clk 0:03:00.6]}
8... Bc5 {[%clk 0:02:42.4]} 9. Qe1 {[%clk 0:03:00.2]} 9... O-O {[%clk
0:02:31.1]} 10. e4 {[%clk 0:03:00.4]} 10... fxe4 {[%clk 0:02:29.7]} 11. dxe4
{[%clk 0:03:00]} 11... Qe7 {[%clk 0:02:18.5]} 12. h3 {[%clk 0:02:55.2]} 12...
Bh5 {[%clk 0:02:12]} 13. Nd4 {[%clk 0:02:52]} 13... Rae8 {[%clk 0:01:59.5]} 14.
c4 {[%clk 0:02:47.9]} 14... Bxd4 {[%clk 0:01:41.8]} 15. Bxd4 {[%clk 0:02:46.6]}
15... e5 {[%clk 0:01:42.3]} 16. Bb2 {[%clk 0:02:33.4]} 16... d4 {[%clk 0:01:42]}
17. a3 {[%clk 0:02:26.4]} 17... Nc5 {[%clk 0:01:30.8]} 18. b4 {[%clk 0:02:21.7]}
18... Nd3 {[%clk 0:01:27.4]} 19. Qb1 {[%clk 0:02:21.8]} 19... Be2 {[%clk
0:01:23.1]} 20. Re1 {[%clk 0:02:18.6]} 20... Nxe1 {[%clk 0:01:21.5]} 21. Qxe1
{[%clk 0:02:19.5]} 21... Bh5 {[%clk 0:01:18.2]} 22. Nb3 {[%clk 0:02:19.1]} 22...
b6 {[%clk 0:01:17.5]} 23. Nc1 {[%clk 0:02:18.9]} 23... Kh8 {[%clk 0:01:16.3]}
24. Nd3 {[%clk 0:02:18.8]} 24... Nd7 {[%clk 0:01:14.7]} 25. Kh2 {[%clk
0:02:16.1]} 25... Bf3 {[%clk 0:01:12.5]} 26. Bxf3 {[%clk 0:01:56.5]} 26... Rxf3
{[%clk 0:01:13.4]} 27. Qe2 {[%clk 0:01:55.2]} 27... Rf6 {[%clk 0:01:10.9]} 28.
Re1 {[%clk 0:01:49.4]} 28... Ref8 {[%clk 0:01:08.9]} 29. f4 {[%clk 0:01:48.6]}
29... exf4 {[%clk 0:01:05.8]} 30. gxf4 {[%clk 0:01:48.9]} 30... Rh6 {[%clk
0:01:03.7]} 31. Bxd4 {[%clk 0:01:44.3]} 31... Qh4 {[%clk 0:00:56.7]} 32. Qg2
{[%clk 0:01:43.7]} 32... Rg6 {[%clk 0:00:50.9]} 33. Qf3 {[%clk 0:01:38]} 33...
c5 {[%clk 0:00:47.1]} 34. Bc3 {[%clk 0:01:23.6]} 34... Nf6 {[%clk 0:00:44]} 35.
f5 {[%clk 0:01:09.2]} 35... Ng4+ {[%clk 0:00:32]} 36. Kh1 {[%clk 0:01:09.1]}
36... Rh6 {[%clk 0:00:28.7]} 37. Nf4 {[%clk 0:00:58.4]} 37... Nf2+ {[%clk
0:00:25.4]} 38. Kg2 {[%clk 0:00:57.6]} 38... Nxh3 {[%clk 0:00:23.3]} 39. Nxh3
{[%clk 0:00:54]} 39... Rd8 {[%clk 0:00:20.3]} 40. Re3 {[%clk 0:00:42.6]} 40...
cxb4 {[%clk 0:00:18]} 41. axb4 {[%clk 0:00:42]} 41... Rd1 {[%clk 0:00:15.9]} 42.
Qxd1 {[%clk 0:00:39.6]} 1-0

[Event "*** Titled Tuesday Blitz"]
[Site "Chess.com"]
[Date "2020.05.26"]
[Round "6"]
[White "Turquoise_2701"]
[Black "Irochka83"]
[Result "1-0"]
[WhiteElo "2182"]
[BlackElo "2384"]
[TimeControl "180+1"]
[EndTime "11:07:23 PDT"]
[Termination "Turquoise_2701 won by resignation"]

1. Nf3 {[%clk 0:03:00.9]} 1... c5 {[%clk 0:02:58.5]} 2. c4 {[%clk 0:03:01]} 2...
Nc6 {[%clk 0:02:57.8]} 3. g3 {[%clk 0:03:01.3]} 3... g6 {[%clk 0:02:58.3]} 4.
Bg2 {[%clk 0:03:01.5]} 4... Bg7 {[%clk 0:02:58.8]} 5. O-O {[%clk 0:03:02.2]}
5... e6 {[%clk 0:02:59.4]} 6. Nc3 {[%clk 0:02:53.6]} 6... Nge7 {[%clk
0:02:59.9]} 7. d3 {[%clk 0:02:49.8]} 7... O-O {[%clk 0:02:58.9]} 8. Bg5 {[%clk
0:02:49.3]} 8... h6 {[%clk 0:02:58.6]} 9. Be3 {[%clk 0:02:49.2]} 9... d6 {[%clk
0:02:34.7]} 10. Qc1 {[%clk 0:02:43.9]} 10... Nf5 {[%clk 0:02:33.4]} 11. Bd2
{[%clk 0:02:33.2]} 11... Kh7 {[%clk 0:02:29.4]} 12. e3 {[%clk 0:02:24.3]} 12...
Nfe7 {[%clk 0:02:19.5]} 13. Ne2 {[%clk 0:02:22.8]} 13... b6 {[%clk 0:02:15.6]}
14. Bc3 {[%clk 0:02:20.9]} 14... e5 {[%clk 0:02:15.2]} 15. a3 {[%clk 0:02:06.7]}
15... Be6 {[%clk 0:02:12.8]} 16. b4 {[%clk 0:02:06.1]} 16... Rc8 {[%clk
0:02:09.5]} 17. Qb1 {[%clk 0:01:59.5]} 17... f5 {[%clk 0:01:55.3]} 18. h4 {[%clk
0:01:55.8]} 18... Bf6 {[%clk 0:01:35.2]} 19. Qb2 {[%clk 0:01:40.2]} 19... g5
{[%clk 0:00:46]} 20. hxg5 {[%clk 0:01:27.6]} 20... hxg5 {[%clk 0:00:46.9]} 21.
Nh2 {[%clk 0:01:18.1]} 21... g4 {[%clk 0:00:45.4]} 22. f4 {[%clk 0:01:03]} 22...
Kg7 {[%clk 0:00:36.3]} 23. b5 {[%clk 0:00:57.2]} 23... Nb8 {[%clk 0:00:32.7]}
24. fxe5 {[%clk 0:00:57.2]} 24... dxe5 {[%clk 0:00:32.3]} 25. Bxe5 {[%clk
0:00:56.8]} 25... Qxd3 {[%clk 0:00:27.6]} 26. Bxf6+ {[%clk 0:00:52.4]} 26...
Rxf6 {[%clk 0:00:26.9]} 27. Nxg4 {[%clk 0:00:43.6]} 27... Nd7 {[%clk 0:00:10]}
28. Nf4 {[%clk 0:00:36.8]} 28... Qxc4 {[%clk 0:00:10.1]} 29. Nxf6 {[%clk
0:00:32.9]} 29... Nxf6 {[%clk 0:00:08.9]} 30. Nh5+ {[%clk 0:00:28.8]} 30... Kg6
{[%clk 0:00:09.4]} 31. Qxf6+ {[%clk 0:00:22.3]} 31... Kxh5 {[%clk 0:00:09.8]}
32. Bf3+ {[%clk 0:00:22]} 1-0

[Event "*** Titled Tuesday Blitz"]
[Site "Chess.com"]
[Date "2020.05.26"]
[Round "6"]
[White "chesstatour"]
[Black "HouseOfDurin"]
[Result "0-1"]
[WhiteElo "1903"]
[BlackElo "2039"]
[TimeControl "180+1"]
[EndTime "11:07:23 PDT"]
[Termination "HouseOfDurin won on time"]

1. c4 {[%clk 0:03:00.9]} 1... c5 {[%clk 0:03:00.4]} 2. Nc3 {[%clk 0:02:56.8]}
2... Nc6 {[%clk 0:03:00.8]} 3. Nf3 {[%clk 0:02:56.9]} 3... e5 {[%clk 0:02:59.4]}
4. d3 {[%clk 0:02:53.9]} 4... g6 {[%clk 0:02:57.4]} 5. g3 {[%clk 0:02:53.3]}
5... Bg7 {[%clk 0:02:56.9]} 6. Bg2 {[%clk 0:02:53.5]} 6... h6 {[%clk 0:02:56.2]}
7. O-O {[%clk 0:02:53.6]} 7... Nge7 {[%clk 0:02:56.8]} 8. Nd5 {[%clk 0:02:52]}
8... O-O {[%clk 0:02:56.4]} 9. Rb1 {[%clk 0:02:38.9]} 9... d6 {[%clk 0:02:53.7]}
10. a3 {[%clk 0:02:37.8]} 10... a5 {[%clk 0:02:53.6]} 11. Qb3 {[%clk 0:02:25.1]}
11... Nxd5 {[%clk 0:02:27.4]} 12. cxd5 {[%clk 0:02:22]} 12... Ne7 {[%clk
0:02:25.8]} 13. e3 {[%clk 0:01:50.5]} 13... a4 {[%clk 0:02:11.6]} 14. Qa2 {[%clk
0:01:43.3]} 14... b5 {[%clk 0:02:09.1]} 15. b3 {[%clk 0:01:33.9]} 15... axb3
{[%clk 0:01:56.1]} 16. Qxb3 {[%clk 0:01:33]} 16... Ba6 {[%clk 0:01:55.1]} 17.
Rd1 {[%clk 0:01:29.3]} 17... f5 {[%clk 0:01:46.1]} 18. Bb2 {[%clk 0:01:19]}
18... Qd7 {[%clk 0:01:21.4]} 19. d4 {[%clk 0:00:27.6]} 19... c4 {[%clk
0:01:07.8]} 20. Qc2 {[%clk 0:00:27.1]} 20... e4 {[%clk 0:01:08]} 21. Nd2 {[%clk
0:00:16.3]} 21... Nxd5 {[%clk 0:01:08.5]} 22. a4 {[%clk 0:00:15.8]} 22... Rfc8
{[%clk 0:01:03.6]} 23. Bc3 {[%clk 0:00:11.6]} 23... bxa4 {[%clk 0:00:55]} 24.
Ra1 {[%clk 0:00:05]} 24... Nxc3 {[%clk 0:00:54]} 25. Qxc3 {[%clk 0:00:05.9]}
25... d5 {[%clk 0:00:54.2]} 26. Qc2 {[%clk 0:00:03.7]} 26... Bb5 {[%clk
0:00:53]} 27. Nb1 {[%clk 0:00:03.9]} 27... Bf8 {[%clk 0:00:49.2]} 28. Nc3 {[%clk
0:00:04.4]} 28... Bc6 {[%clk 0:00:47.1]} 29. Bf1 {[%clk 0:00:04.4]} 29... Rcb8
{[%clk 0:00:44.2]} 30. Ne2 {[%clk 0:00:04.9]} 30... Rb3 {[%clk 0:00:40.6]} 31.
Nc3 {[%clk 0:00:04.8]} 31... Rab8 {[%clk 0:00:31.1]} 32. Be2 {[%clk 0:00:04.7]}
32... Bb4 {[%clk 0:00:22.1]} 0-1

[Event "*** Titled Tuesday Blitz"]
[Site "Chess.com"]
[Date "2020.05.26"]
[Round "6"]
[White "vanyakuba"]
[Black "attack2mateU"]
[Result "0-1"]
[WhiteElo "2467"]
[BlackElo "2677"]
[TimeControl "180+1"]
[EndTime "11:07:28 PDT"]
[Termination "attack2mateU won on time"]

1. e4 {[%clk 0:03:00.9]} 1... c5 {[%clk 0:02:59.2]} 2. Nc3 {[%clk 0:03:01]} 2...
d6 {[%clk 0:02:58.3]} 3. f4 {[%clk 0:03:00.9]} 3... Nc6 {[%clk 0:02:57.5]} 4.
Nf3 {[%clk 0:03:00.8]} 4... g6 {[%clk 0:02:57.6]} 5. Bc4 {[%clk 0:02:59.8]} 5...
Bg7 {[%clk 0:02:57.2]} 6. d3 {[%clk 0:02:59.7]} 6... e6 {[%clk 0:02:56.7]} 7. f5
{[%clk 0:03:00.1]} 7... exf5 {[%clk 0:02:25]} 8. O-O {[%clk 0:02:59.5]} 8... Be6
{[%clk 0:02:14.5]} 9. Bxe6 {[%clk 0:02:38]} 9... fxe6 {[%clk 0:02:14]} 10. Ng5
{[%clk 0:02:38.3]} 10... Qd7 {[%clk 0:02:13.2]} 11. exf5 {[%clk 0:02:37.9]}
11... exf5 {[%clk 0:02:06.9]} 12. Re1+ {[%clk 0:02:35.7]} 12... Nge7 {[%clk
0:02:04.8]} 13. Ne6 {[%clk 0:02:27.3]} 13... Be5 {[%clk 0:01:58.4]} 14. Nb5
{[%clk 0:01:35.3]} 14... Rc8 {[%clk 0:01:48.9]} 15. d4 {[%clk 0:01:05.5]} 15...
cxd4 {[%clk 0:01:40.7]} 16. Nbxd4 {[%clk 0:00:52.5]} 16... Nxd4 {[%clk
0:01:37.9]} 17. Nxd4 {[%clk 0:00:52.3]} 17... O-O {[%clk 0:01:00.5]} 18. Bh6
{[%clk 0:00:51.9]} 18... Rfe8 {[%clk 0:01:00.9]} 19. c3 {[%clk 0:00:51.2]} 19...
Nc6 {[%clk 0:00:46.2]} 20. Nf3 {[%clk 0:00:31.9]} 20... d5 {[%clk 0:00:42.2]}
21. Nxe5 {[%clk 0:00:26.7]} 21... Rxe5 {[%clk 0:00:41.6]} 22. Rxe5 {[%clk
0:00:26.4]} 22... Nxe5 {[%clk 0:00:41.3]} 23. Qd4 {[%clk 0:00:25.4]} 23... Ng4
{[%clk 0:00:37.8]} 24. Bf4 {[%clk 0:00:18.2]} 24... Rc4 {[%clk 0:00:34]} 25. Qd2
{[%clk 0:00:15.2]} 25... Nf6 {[%clk 0:00:26.2]} 26. Rd1 {[%clk 0:00:12.8]} 26...
Qe6 {[%clk 0:00:23.9]} 27. Re1 {[%clk 0:00:10.4]} 27... Re4 {[%clk 0:00:23.1]}
28. Rxe4 {[%clk 0:00:09.2]} 28... Qxe4 {[%clk 0:00:22.2]} 29. h3 {[%clk
0:00:06.7]} 29... Kf7 {[%clk 0:00:18.9]} 30. Be3 {[%clk 0:00:03.9]} 30... a6
{[%clk 0:00:18.1]} 31. Bd4 {[%clk 0:00:03]} 31... Nh5 {[%clk 0:00:15.9]} 0-1

[Event "*** Titled Tuesday Blitz"]
[Site "Chess.com"]
[Date "2020.05.26"]
[Round "6"]
[White "NormWeinstein"]
[Black "StephenDedalus83"]
[Result "1-0"]
[WhiteElo "2366"]
[BlackElo "2728"]
[TimeControl "180+1"]
[EndTime "11:07:29 PDT"]
[Termination "NormWeinstein won by resignation"]

1. e4 {[%clk 0:03:00.2]} 1... c5 {[%clk 0:02:59.1]} 2. Nf3 {[%clk 0:03:00.2]}
2... Nc6 {[%clk 0:02:59.6]} 3. Nc3 {[%clk 0:03:00.4]} 3... g6 {[%clk 0:02:57]}
4. d4 {[%clk 0:02:59.7]} 4... cxd4 {[%clk 0:02:57.9]} 5. Nxd4 {[%clk 0:02:59.7]}
5... Bg7 {[%clk 0:02:58.5]} 6. Be3 {[%clk 0:03:00]} 6... Nf6 {[%clk 0:02:58.4]}
7. Bc4 {[%clk 0:02:59.8]} 7... O-O {[%clk 0:02:58.8]} 8. Bb3 {[%clk 0:02:59.8]}
8... d6 {[%clk 0:02:57.2]} 9. h3 {[%clk 0:02:58.9]} 9... Na5 {[%clk 0:02:53]}
10. f3 {[%clk 0:02:57.9]} 10... b6 {[%clk 0:02:49.2]} 11. Qd2 {[%clk 0:02:57.1]}
11... Bb7 {[%clk 0:02:43.1]} 12. O-O-O {[%clk 0:02:56]} 12... Rc8 {[%clk
0:02:42.8]} 13. h4 {[%clk 0:02:55.3]} 13... h5 {[%clk 0:02:40.3]} 14. Bh6 {[%clk
0:02:44]} 14... Nc4 {[%clk 0:02:33.2]} 15. Bxc4 {[%clk 0:02:43.2]} 15... Rxc4
{[%clk 0:02:32.7]} 16. Bxg7 {[%clk 0:02:41.7]} 16... Kxg7 {[%clk 0:02:33.1]} 17.
g4 {[%clk 0:02:24.8]} 17... hxg4 {[%clk 0:02:29.6]} 18. h5 {[%clk 0:02:24.6]}
18... Rh8 {[%clk 0:02:29.4]} 19. hxg6 {[%clk 0:02:20.7]} 19... Bc8 {[%clk
0:02:10.9]} 20. gxf7 {[%clk 0:01:32.8]} 20... Kxf7 {[%clk 0:02:08.9]} 21. fxg4
{[%clk 0:01:26.4]} 21... Bxg4 {[%clk 0:02:05.5]} 22. Rdg1 {[%clk 0:01:20.6]}
22... Rxh1 {[%clk 0:01:30.8]} 23. Rxh1 {[%clk 0:01:19.7]} 23... Qg8 {[%clk
0:01:30]} 24. Rf1 {[%clk 0:00:56.8]} 24... Ke8 {[%clk 0:01:26.7]} 25. b3 {[%clk
0:00:55.3]} 25... Rc5 {[%clk 0:01:24.4]} 26. Kb2 {[%clk 0:00:42.8]} 26... Qg5
{[%clk 0:01:23.1]} 27. Qd3 {[%clk 0:00:38.6]} 27... Qe5 {[%clk 0:01:19.5]} 28.
Kb1 {[%clk 0:00:36.2]} 28... Kd7 {[%clk 0:01:16.1]} 29. Nde2 {[%clk 0:00:30.3]}
29... Bxe2 {[%clk 0:01:14.5]} 30. Nxe2 {[%clk 0:00:30.2]} 30... Nxe4 {[%clk
0:01:14.5]} 31. c4 {[%clk 0:00:20.7]} 31... Nf6 {[%clk 0:01:11.5]} 32. Nc3
{[%clk 0:00:18.4]} 32... a6 {[%clk 0:01:10.8]} 33. Rd1 {[%clk 0:00:15.5]} 33...
b5 {[%clk 0:01:09.8]} 34. Nd5 {[%clk 0:00:14.2]} 34... Nxd5 {[%clk 0:01:06.8]}
35. cxd5 {[%clk 0:00:13.8]} 35... Rc3 {[%clk 0:01:05.6]} 36. Qf1 {[%clk
0:00:10.2]} 36... Qe4+ {[%clk 0:01:04.3]} 37. Ka1 {[%clk 0:00:10.4]} 37... Rc2
{[%clk 0:01:03.7]} 38. Qh3+ {[%clk 0:00:09.1]} 38... Kc7 {[%clk 0:01:02.3]} 39.
Qd3 {[%clk 0:00:06.7]} 39... Qe5+ {[%clk 0:01:01.1]} 40. Qd4 {[%clk 0:00:06.4]}
40... Rc1+ {[%clk 0:00:56.2]} 41. Rxc1+ {[%clk 0:00:06.1]} 41... Kb7 {[%clk
0:00:56.3]} 42. Qxe5 {[%clk 0:00:06.6]} 42... dxe5 {[%clk 0:00:56]} 43. Rc6
{[%clk 0:00:07]} 43... b4 {[%clk 0:00:52.3]} 44. Kb2 {[%clk 0:00:06.9]} 44... a5
{[%clk 0:00:51.8]} 45. Kc2 {[%clk 0:00:07.2]} 45... e4 {[%clk 0:00:50.8]} 46.
Kd2 {[%clk 0:00:07.2]} 46... e6 {[%clk 0:00:49.2]} 47. Rxe6 {[%clk 0:00:06.4]}
47... Kc7 {[%clk 0:00:48.9]} 48. Ke3 {[%clk 0:00:06.8]} 48... Kd7 {[%clk
0:00:49]} 49. Kxe4 {[%clk 0:00:07.2]} 1-0

[Event "*** Titled Tuesday Blitz"]
[Site "Chess.com"]
[Date "2020.05.26"]
[Round "6"]
[White "cancrushyou"]
[Black "Dinamo81"]
[Result "0-1"]
[WhiteElo "2431"]
[BlackElo "2625"]
[TimeControl "180+1"]
[EndTime "11:07:30 PDT"]
[Termination "Dinamo81 won on time"]

1. d4 {[%clk 0:02:58.8]} 1... d5 {[%clk 0:02:58.5]} 2. c4 {[%clk 0:02:58]} 2...
e6 {[%clk 0:02:57.7]} 3. Nf3 {[%clk 0:02:57.6]} 3... a6 {[%clk 0:02:58]} 4. g3
{[%clk 0:02:49]} 4... dxc4 {[%clk 0:02:53.5]} 5. Bg2 {[%clk 0:02:48.5]} 5... Nc6
{[%clk 0:02:53.8]} 6. O-O {[%clk 0:02:45.7]} 6... Rb8 {[%clk 0:02:53]} 7. e3
{[%clk 0:02:15.7]} 7... b5 {[%clk 0:02:51]} 8. b3 {[%clk 0:02:15.8]} 8... cxb3
{[%clk 0:02:49.3]} 9. axb3 {[%clk 0:02:16]} 9... Nf6 {[%clk 0:02:49.2]} 10. Qe2
{[%clk 0:02:15.6]} 10... Bd6 {[%clk 0:02:48.9]} 11. Bd2 {[%clk 0:02:15.3]} 11...
O-O {[%clk 0:02:28.2]} 12. Rc1 {[%clk 0:02:14.6]} 12... Bb7 {[%clk 0:02:16.7]}
13. Ng5 {[%clk 0:02:10.6]} 13... Nb4 {[%clk 0:02:06.6]} 14. Bxb4 {[%clk
0:01:59.9]} 14... Bxb4 {[%clk 0:02:05.7]} 15. Bxb7 {[%clk 0:01:54.2]} 15... Rxb7
{[%clk 0:02:06.6]} 16. Rxa6 {[%clk 0:01:53.9]} 16... Qd5 {[%clk 0:02:05.4]} 17.
Qf3 {[%clk 0:01:41.3]} 17... h6 {[%clk 0:01:41.7]} 18. Qxd5 {[%clk 0:01:37.9]}
18... exd5 {[%clk 0:01:42.6]} 19. Nh3 {[%clk 0:01:23]} 19... Ne4 {[%clk
0:01:28]} 20. Nf4 {[%clk 0:01:22.6]} 20... Rd8 {[%clk 0:01:27.6]} 21. Rac6
{[%clk 0:01:11.4]} 21... g5 {[%clk 0:01:19.3]} 22. Nd3 {[%clk 0:01:09.2]} 22...
Bd6 {[%clk 0:01:19.2]} 23. Ra6 {[%clk 0:00:57.3]} 23... b4 {[%clk 0:01:14.8]}
24. f3 {[%clk 0:00:51.4]} 24... Nf6 {[%clk 0:01:11.2]} 25. Nc5 {[%clk 0:00:50]}
25... Rb5 {[%clk 0:01:09.2]} 26. Nd2 {[%clk 0:00:41.4]} 26... g4 {[%clk
0:01:08]} 27. Kf2 {[%clk 0:00:37]} 27... Re8 {[%clk 0:01:05.3]} 28. f4 {[%clk
0:00:20.2]} 28... Kg7 {[%clk 0:01:00.8]} 29. Ke2 {[%clk 0:00:20.2]} 29... h5
{[%clk 0:01:00.2]} 30. Kd3 {[%clk 0:00:20.1]} 30... h4 {[%clk 0:01:00.2]} 31.
gxh4 {[%clk 0:00:19.5]} 31... Rh8 {[%clk 0:00:59.6]} 32. e4 {[%clk 0:00:19.6]}
32... Bxc5 {[%clk 0:00:47.3]} 33. Rxc5 {[%clk 0:00:13.4]} 33... Rxc5 {[%clk
0:00:45.1]} 34. dxc5 {[%clk 0:00:13.7]} 34... dxe4+ {[%clk 0:00:44.9]} 35. Nxe4
{[%clk 0:00:09.9]} 35... Rd8+ {[%clk 0:00:44]} 36. Ke3 {[%clk 0:00:09.9]} 36...
Nd5+ {[%clk 0:00:44.3]} 37. Kf2 {[%clk 0:00:09.1]} 37... Nxf4 {[%clk 0:00:40.3]}
38. Kg3 {[%clk 0:00:09.2]} 38... Ne6 {[%clk 0:00:40.4]} 39. Kxg4 {[%clk
0:00:08.4]} 39... Rd4 {[%clk 0:00:40.9]} 40. Kf3 {[%clk 0:00:08.7]} 40... Rxe4
{[%clk 0:00:40.9]} 0-1